[Event "17th Aeroflot Open-A 2019"]
[Site "Moscow"]
[Date "2019.02.23"]
[Round "4.35"]
[White "Yakubboev, Nodirbek"]
[Black "Flom, Gabriel"]
[Result "1-0"]
[ECO "C02"]
[WhiteElo "2569"]
[BlackElo "2460"]
[Annotator "ChessBase"]
[PlyCount "89"]
[EventDate "2019.02.19"]
[EventCountry "RUS"]
[SourceTitle "playchess.com"]
[Source "ChessBase"]
[SourceQuality "1"]
[TimeControl "40/5400+30:1800+30"]

1. e4 {[%emt 0:01:11]} e6 {[%emt 0:09:48]} 2. d4 {[%emt 0:07:23]} d5 {[%emt 0:00:13]} 3. e5 {[%emt 0:02:59]} c5 {[%emt 0:00:17]} 4. c3 {[%emt 0:00:09]} Nc6 {[%emt 0:00:10]} 5. Nf3 {[%emt 0:00:47]} Qb6 {[%emt 0:00:21]} 6. a3 {[%emt 0:00:32]} Nh6 {[%emt 0:00:42]} 7. b4 {[%emt 0:05:22]} cxd4 {[%emt 0:00:13]} 8. Bxh6 {[%emt 0:00:07]} gxh6 {[%emt 0:00:20]} 9. cxd4 {[%emt 0:00:04]} Bd7 {[%emt 0:03:54]} 10. Ra2 {[%emt 0:11:18]} Rg8 {[%emt 0:00:27]} 11. g3 {[%emt 0:02:18]} h5 {[%emt 0:19:55]} 12. Be2 {[%emt 0:06:54]} h4 {[%emt 0:00:15]} 13. Rd2 {[%emt 0:03:25]} Be7 {[%emt 0:09:21]} 14. Nc3 {[%emt 0:07:35]} Nd8 {[%emt 0:10:35]} 15. Na4 {[%emt 0:08:32]} Bxa4 {[%emt 0:00:21]} 16. Qxa4+ {[%emt 0:00:03]} Kf8 {[%emt 0:05:13]} 17. O-O {[%emt 0:05:36]} Rc8 {[%emt 0:08:29]} 18. Rc2 {[%emt 0:01:17]} Rxc2 {[%emt 0:00:17]} 19. Qxc2 {[%emt 0:00:02]} a5 {[%emt 0:04:04]} 20. Qxh7 {[%emt 0:09:29]} axb4 {[%emt 0:00:10]} 21. axb4 {[%emt 0:00:01]} hxg3 {[%emt 0:02:01]} 22. hxg3 {[%emt 0:00:02]} Qxb4 {[%emt 0:01:25]} 23. Kg2 {[%emt 0:01:49]} Qb6 {[%emt 0:03:13]} 24. Rb1 {[%emt 0:03:27]} Qc7 {[%emt 0:01:28]} 25. Ra1 {[%emt 0:01:21]} Qb8 {[%emt 0:06:07]} 26. Bb5 {[%emt 0:01:26]} Nc6 {[%emt 0:00:11]} 27. Ra2 {[%emt 0:05:12]} Rg7 {[%emt 0:01:17]} 28. Qh6 {[%emt 0:00:24]} Kg8 {[%emt 0:00:39]} 29. Rc2 {[%emt 0:01:43]} Na7 {[%emt 0:10:33]} 30. Bd3 {[%emt 0:01:31]} Nc6 {[%emt 0:00:09]} 31. Rc1 {[%emt 0:02:11]} Kf8 {[%emt 0:01:22]} 32. Rh1 {[%emt 0:01:04]} Qd8 {[%emt 0:00:47]} 33. Qf4 {[%emt 0:03:59]} Ke8 {[%emt 0:01:44]} 34. Rh8+ {[%emt 0:02:10]} Bf8 {[%emt 0:00:07]} 35. Kh3 {[%emt 0:01:53]} Kd7 {[%emt 0:00:51]} 36. Qf6 {[%emt 0:01:05]} Ne7 {[%emt 0:00:26]} 37. Ng5 {[%emt 0:01:11]} Ng8 {[%emt 0:00:34]} 38. Qxd8+ {[%emt 0:01:43]} Kxd8 {[%emt 0:00:06]} 39. Nh7 {[%emt 0:01:01]} Ke7 {[%emt 0:00:53]} 40. f4 {[%emt 0:00:00]} b5 {[%emt 0:00:00]} 41. Bxb5 {[%emt 0:08:14]} Rg6 {[%emt 0:00:11]} 42. Bd3 {[%emt 0:00:21]} Rh6+ {[%emt 0:00:18]} 43. Kg2 {[%emt 0:00:16]} f5 {[%emt 0:00:06]} 44. exf6+ {[%emt 0:00:47]} Nxf6 {[%emt 0:00:39]} 45. Nxf8 {[%emt 0:00:20]} 1-0

[Event "17th Aeroflot Open-A 2019"]
[Site "Moscow"]
[Date "2019.02.23"]
[Round "4.36"]
[White "Dai, Changren"]
[Black "Moroni, Luca Jr"]
[Result "0-1"]
[ECO "C95"]
[WhiteElo "2473"]
[BlackElo "2567"]
[Annotator "ChessBase"]
[PlyCount "80"]
[EventDate "2019.02.19"]
[EventCountry "RUS"]
[SourceTitle "playchess.com"]
[Source "ChessBase"]
[SourceQuality "1"]
[TimeControl "40/5400+30:1800+30"]

1. e4 {[%emt 0:00:00]} e5 {[%emt 0:01:58]} 2. Nf3 {[%emt 0:00:00]} Nc6 {[%emt 0:00:02]} 3. Bb5 {[%emt 0:00:00]} a6 {[%emt 0:00:04]} 4. Ba4 {[%emt 0:00:03]} Nf6 {[%emt 0:00:04]} 5. O-O {[%emt 0:00:09]} Be7 {[%emt 0:00:05]} 6. Re1 {[%emt 0:00:10]} b5 {[%emt 0:00:05]} 7. Bb3 {[%emt 0:00:04]} d6 {[%emt 0:00:03]} 8. c3 {[%emt 0:00:07]} O-O {[%emt 0:00:06]} 9. h3 {[%emt 0:00:18]} Nb8 {[%emt 0:00:06]} 10. d4 {[%emt 0:01:01]} Nbd7 {[%emt 0:00:05]} 11. Nbd2 {[%emt 0:00:31]} Bb7 {[%emt 0:00:05]} 12. Bc2 {[%emt 0:00:07]} Re8 {[%emt 0:00:05]} 13. Nf1 {[%emt 0:00:57]} Bf8 {[%emt 0:00:09]} 14. Ng3 {[%emt 0:00:11]} g6 {[%emt 0:00:06]} 15. a4 {[%emt 0:01:21]} Nb6 {[%emt 0:03:16]} 16. a5 {[%emt 0:01:45]} Nbd7 {[%emt 0:00:06]} 17. d5 {[%emt 0:00:32]} c6 {[%emt 0:03:02]} 18. dxc6 {[%emt 0:00:37]} Bxc6 {[%emt 0:00:02]} 19. b4 {[%emt 0:02:54]} Qc7 {[%emt 0:08:44]} 20. Bb3 {[%emt 0:08:09]} Bg7 {[%emt 0:13:54]} 21. Qc2 {[%emt 0:05:37]} h6 {[%emt 0:08:36]} 22. Be3 {[%emt 0:19:01]} Qb7 {[%emt 0:05:49]} 23. Qa2 {[%emt 0:00:42]} Nf8 {[%emt 0:02:48]} 24. Bb6 {[%emt 0:04:36]} d5 {[%emt 0:09:11]} 25. exd5 {[%emt 0:04:16]} Bxd5 {[%emt 0:07:43]} 26. Nxe5 {[%emt 0:03:39]} Bxb3 {[%emt 0:03:40]} 27. Qxb3 {[%emt 0:00:07]} Nd5 {[%emt 0:00:32]} 28. Bd4 {[%emt 0:01:34]} Nf4 {[%emt 0:00:58]} 29. f3 {[%emt 0:04:52]} N8e6 {[%emt 0:09:55]} 30. Ne4 {[%emt 0:06:23]} Qc7 {[%emt 0:06:57]} 31. Ng4 {[%emt 0:13:04]} Nxd4 {[%emt 0:01:41]} 32. Ngf6+ {[%emt 0:00:11]} Kh8 {[%emt 0:02:54]} 33. cxd4 {[%emt 0:01:45]} Re6 {[%emt 0:04:21]} 34. Rac1 {[%emt 0:08:55]} Qd8 {[%emt 0:01:23]} 35. Ng4 {[%emt 0:01:33]} f5 {[%emt 0:01:13]} 36. g3 {[%emt 0:01:35]} Qd5 {[%emt 0:01:34]} 37. Nc5 {[%emt 0:05:50]} Rxe1+ {[%emt 0:01:27]} 38. Rxe1 {[%emt 0:00:02]} Bxd4+ {[%emt 0:02:27]} 39. Ne3 {[%emt 0:01:01]} Bxc5 {[%emt 0:01:23]} 40. Qxd5 {[%emt 0:00:00]} Bxe3+ {[%emt 0:00:00]} 0-1

[Event "17th Aeroflot Open-A 2019"]
[Site "Moscow"]
[Date "2019.02.23"]
[Round "5.6"]
[White "Narayanan.S.L"]
[Black "Chigaev, Maksim"]
[Result "0-1"]
[ECO "D71"]
[WhiteElo "2593"]
[BlackElo "2613"]
[Annotator "ChessBase"]
[PlyCount "66"]
[EventDate "2019.02.19"]
[EventCountry "RUS"]
[SourceTitle "playchess.com"]
[Source "ChessBase"]
[SourceQuality "1"]
[TimeControl "40/5400+30:1800+30"]

1. d4 {[%emt 0:01:00]} Nf6 {[%emt 0:00:00]} 2. c4 {[%emt 0:00:06]} g6 {[%emt 0:00:00]} 3. g3 {[%emt 0:00:05]} c6 {[%emt 0:02:13]} 4. Bg2 {[%emt 0:00:07]} d5 {[%emt 0:00:03]} 5. Qa4 {[%emt 0:00:21]} dxc4 {[%emt 0:00:15]} 6. Qxc4 {[%emt 0:00:08]} Bg7 {[%emt 0:00:04]} 7. Nf3 {[%emt 0:00:09]} O-O {[%emt 0:00:05]} 8. O-O {[%emt 0:00:06]} Bf5 {[%emt 0:00:03]} 9. Nc3 {[%emt 0:00:21]} Nbd7 {[%emt 0:00:09]} 10. h3 {[%emt 0:00:31]} a5 {[%emt 0:02:48]} 11. Qb3 {[%emt 0:13:41]} Nb6 {[%emt 0:03:22]} 12. a4 {[%emt 0:08:14]} Be6 {[%emt 0:15:47]} 13. Qd1 {[%emt 0:00:42]} Bc4 {[%emt 0:02:08]} 14. Re1 {[%emt 0:27:26]} Nbd5 {[%emt 0:02:25]} 15. Ne5 {[%emt 0:04:25]} Ba6 {[%emt 0:00:11]} 16. Nd3 {[%emt 0:02:06]} Nd7 {[%emt 0:14:28]} 17. e4 {[%emt 0:03:20]} N5b6 {[%emt 0:07:33]} 18. d5 {[%emt 0:04:05]} Nc4 {[%emt 0:07:50]} 19. dxc6 {[%emt 0:02:17]} bxc6 {[%emt 0:00:05]} 20. Qc2 {[%emt 0:00:15]} Qb6 {[%emt 0:00:56]} 21. Rb1 {[%emt 0:05:34]} Rfd8 {[%emt 0:07:10]} 22. b3 {[%emt 0:13:07]} Nce5 {[%emt 0:00:05]} 23. Nxe5 {[%emt 0:02:35]} Nxe5 {[%emt 0:00:12]} 24. Be3 {[%emt 0:00:11]} Qb7 {[%emt 0:00:58]} 25. Rbd1 {[%emt 0:01:22]} h5 {[%emt 0:22:47]} 26. Rxd8+ {[%emt 0:01:43]} Rxd8 {[%emt 0:00:01]} 27. f4 {[%emt 0:03:44]} Qb4 {[%emt 0:05:53]} 28. Rc1 {[%emt 0:00:05]} Rd3 {[%emt 0:00:22]} 29. Nd1 {[%emt 0:03:13]} Qe1+ {[%emt 0:02:41]} 30. Kh2 {[%emt 0:00:03]} Rxe3 {[%emt 0:00:06]} 31. Nxe3 {[%emt 0:00:04]} Qxe3 {[%emt 0:00:04]} 32. Qc5 {[%emt 0:00:02]} Nf3+ {[%emt 0:00:12]} 33. Kh1 {[%emt 0:00:16]} Bd4 {[%emt 0:00:44]} 0-1

[Event "17th Aeroflot Open-A 2019"]
[Site "Moscow"]
[Date "2019.02.23"]
[Round "5.13"]
[White "Ganguly, Surya Shekhar"]
[Black "Yakubboev, Nodirbek"]
[Result "1/2-1/2"]
[ECO "A05"]
[WhiteElo "2636"]
[BlackElo "2569"]
[Annotator "ChessBase"]
[PlyCount "89"]
[EventDate "2019.02.19"]
[EventCountry "RUS"]
[SourceTitle "playchess.com"]
[Source "ChessBase"]
[SourceQuality "1"]
[TimeControl "40/5400+30:1800+30"]

1. Nf3 {[%emt 0:02:27]} Nf6 {[%emt 0:03:18]} 2. g3 {[%emt 0:00:13]} d5 {[%emt 0:01:34]} 3. Bg2 {[%emt 0:00:10]} c6 {[%emt 0:11:55]} 4. O-O {[%emt 0:00:16]} Bf5 {[%emt 0:02:49]} 5. d3 {[%emt 0:00:08]} h6 {[%emt 0:00:57]} 6. c4 {[%emt 0:00:29]} e6 {[%emt 0:02:39]} 7. Qb3 {[%emt 0:02:32]} Qb6 {[%emt 0:03:38]} 8. Nc3 {[%emt 0:00:07]} Nbd7 {[%emt 0:00:57]} 9. cxd5 {[%emt 0:00:09]} Qxb3 {[%emt 0:01:42]} 10. axb3 {[%emt 0:00:06]} exd5 {[%emt 0:00:04]} 11. e4 {[%emt 0:26:31]} dxe4 {[%emt 0:00:15]} 12. dxe4 {[%emt 0:00:06]} Be6 {[%emt 0:02:07]} 13. Nd4 {[%emt 0:03:03]} Bc5 {[%emt 0:03:04]} 14. Nce2 {[%emt 0:05:49]} Bb6 {[%emt 0:06:40]} 15. Be3 {[%emt 0:12:26]} Ng4 {[%emt 0:00:34]} 16. Bd2 {[%emt 0:00:37]} Nc5 {[%emt 0:04:27]} 17. Bc3 {[%emt 0:08:03]} O-O {[%emt 0:09:32]} 18. b4 {[%emt 0:02:39]} Nb3 {[%emt 0:02:34]} 19. Nxb3 {[%emt 0:02:36]} Bxb3 {[%emt 0:00:04]} 20. Bf3 {[%emt 0:00:49]} Nf6 {[%emt 0:06:20]} 21. Nd4 {[%emt 0:01:01]} Bc4 {[%emt 0:01:06]} 22. Rfe1 {[%emt 0:00:38]} Rfd8 {[%emt 0:01:33]} 23. Nf5 {[%emt 0:03:44]} Ne8 {[%emt 0:00:57]} 24. h4 {[%emt 0:08:41]} Be6 {[%emt 0:05:16]} 25. Kg2 {[%emt 0:01:48]} Rd7 {[%emt 0:01:49]} 26. g4 {[%emt 0:00:52]} f6 {[%emt 0:01:23]} 27. Rh1 {[%emt 0:02:45]} Nd6 {[%emt 0:03:48]} 28. Nxd6 {[%emt 0:02:26]} Rxd6 {[%emt 0:00:48]} 29. Rhd1 {[%emt 0:02:06]} Rad8 {[%emt 0:00:28]} 30. Be2 {[%emt 0:02:42]} Rxd1 {[%emt 0:00:31]} 31. Rxd1 {[%emt 0:01:51]} Rxd1 {[%emt 0:00:52]} 32. Bxd1 {[%emt 0:00:02]} Bc7 {[%emt 0:00:01]} 33. Bd4 {[%emt 0:00:42]} b6 {[%emt 0:02:48]} 34. Kf3 {[%emt 0:02:55]} Be5 {[%emt 0:02:55]} 35. Bxe5 {[%emt 0:00:45]} fxe5 {[%emt 0:00:01]} 36. g5 {[%emt 0:00:15]} hxg5 {[%emt 0:00:03]} 37. hxg5 {[%emt 0:00:06]} Kf7 {[%emt 0:00:44]} 38. Kg3 {[%emt 0:00:27]} Ke7 {[%emt 0:01:06]} 39. f4 {[%emt 0:00:29]} exf4+ {[%emt 0:00:03]} 40. Kxf4 {[%emt 0:00:00]} Kd6 {[%emt 0:00:00]} 41. e5+ {[%emt 0:00:35]} Kc7 {[%emt 0:00:56]} 42. Ke4 {[%emt 0:00:57]} Kd7 {[%emt 0:01:36]} 43. Kd4 {[%emt 0:01:05]} Ke7 {[%emt 0:01:24]} 44. Bf3 {[%emt 0:00:47]} Kd7 {[%emt 0:00:55]} 45. Bd1 {[%emt 0:00:09]} 1/2-1/2

[Event "17th Aeroflot Open-A 2019"]
[Site "Moscow"]
[Date "2019.02.23"]
[Round "5.15"]
[White "Abdusattorov, Nodirbek"]
[Black "Sarana, Alexey"]
[Result "1/2-1/2"]
[ECO "B51"]
[WhiteElo "2560"]
[BlackElo "2630"]
[Annotator "ChessBase"]
[PlyCount "55"]
[EventDate "2019.02.19"]
[EventCountry "RUS"]
[SourceTitle "playchess.com"]
[Source "ChessBase"]
[SourceQuality "1"]
[TimeControl "40/5400+30:1800+30"]

1. e4 {[%emt 0:00:00]} c5 {[%emt 0:00:00]} 2. Nf3 {[%emt 0:00:00]} d6 {[%emt 0:00:00]} 3. Bb5+ {[%emt 0:00:14]} Nd7 {[%emt 0:00:01]} 4. d4 {[%emt 0:00:28]} cxd4 {[%emt 0:00:12]} 5. Qxd4 {[%emt 0:00:08]} a6 {[%emt 0:00:15]} 6. Bxd7+ {[%emt 0:01:14]} Bxd7 {[%emt 0:00:02]} 7. c4 {[%emt 0:00:50]} e5 {[%emt 0:00:11]} 8. Qd3 {[%emt 0:00:22]} b5 {[%emt 0:00:16]} 9. Nc3 {[%emt 0:01:30]} bxc4 {[%emt 0:00:11]} 10. Qxc4 {[%emt 0:00:05]} Be6 {[%emt 0:00:05]} 11. Qd3 {[%emt 0:01:20]} h6 {[%emt 0:00:56]} 12. O-O {[%emt 0:00:33]} Nf6 {[%emt 0:00:06]} 13. Nd2 {[%emt 0:06:07]} Qc7 {[%emt 0:00:38]} 14. Rd1 {[%emt 0:00:57]} Be7 {[%emt 0:00:07]} 15. Nf1 {[%emt 0:00:18]} O-O {[%emt 0:00:07]} 16. Ne3 {[%emt 0:00:26]} Rfc8 {[%emt 0:01:10]} 17. Bd2 {[%emt 0:01:55]} Qb7 {[%emt 0:00:27]} 18. b3 {[%emt 0:02:14]} Bd8 {[%emt 0:02:44]} 19. Rac1 {[%emt 0:05:58]} Bb6 {[%emt 0:04:32]} 20. Ncd5 {[%emt 0:04:51]} Bxd5 {[%emt 0:07:37]} 21. exd5 {[%emt 0:02:19]} Rxc1 {[%emt 0:16:52]} 22. Bxc1 {[%emt 0:01:25]} Bxe3 {[%emt 0:00:16]} 23. Bxe3 {[%emt 0:00:51]} Rc8 {[%emt 0:00:14]} 24. h3 {[%emt 0:01:35]} Qb5 {[%emt 0:03:56]} 25. Qf5 {[%emt 0:03:44]} Qd7 {[%emt 0:00:12]} 26. Qd3 {[%emt 0:08:18]} Qb5 {[%emt 0:00:05]} 27. Qf5 {[%emt 0:01:10]} Qd7 {[%emt 0:00:02]} 28. Qd3 {[%emt 0:00:51]} 1/2-1/2

[Event "17th Aeroflot Open-A 2019"]
[Site "Moscow"]
[Date "2019.02.23"]
[Round "5.18"]
[White "Lupulescu, Constantin"]
[Black "Xu, Yi"]
[Result "1/2-1/2"]
[ECO "D38"]
[WhiteElo "2610"]
[BlackElo "2520"]
[Annotator "ChessBase"]
[PlyCount "73"]
[EventDate "2019.02.19"]
[EventCountry "RUS"]
[SourceTitle "playchess.com"]
[Source "ChessBase"]
[SourceQuality "1"]
[TimeControl "40/5400+30:1800+30"]

1. d4 {[%emt 0:00:00]} Nf6 {[%emt 0:03:17]} 2. c4 {[%emt 0:00:00]} e6 {[%emt 0:00:06]} 3. Nf3 {[%emt 0:00:00]} d5 {[%emt 0:00:04]} 4. Nc3 {[%emt 0:00:00]} Bb4 {[%emt 0:00:03]} 5. cxd5 {[%emt 0:00:00]} exd5 {[%emt 0:00:03]} 6. Bg5 {[%emt 0:00:05]} h6 {[%emt 0:00:06]} 7. Bh4 {[%emt 0:00:04]} O-O {[%emt 0:00:13]} 8. e3 {[%emt 0:00:25]} Bf5 {[%emt 0:00:37]} 9. Qb3 {[%emt 0:00:06]} Bxc3+ {[%emt 0:01:24]} 10. Qxc3 {[%emt 0:00:18]} Nbd7 {[%emt 0:04:12]} 11. Be2 {[%emt 0:00:20]} c6 {[%emt 0:04:01]} 12. Qa3 {[%emt 0:00:18]} Re8 {[%emt 0:09:31]} 13. Nd2 {[%emt 0:01:53]} Nf8 {[%emt 0:07:03]} 14. O-O {[%emt 0:01:28]} Ng6 {[%emt 0:00:32]} 15. Bg3 {[%emt 0:00:34]} Ne4 {[%emt 0:02:15]} 16. Nxe4 {[%emt 0:01:04]} Bxe4 {[%emt 0:00:09]} 17. Rfc1 {[%emt 0:03:47]} Ne7 {[%emt 0:04:11]} 18. b4 {[%emt 0:08:40]} a6 {[%emt 0:00:46]} 19. Qa5 {[%emt 0:02:08]} Qxa5 {[%emt 0:09:23]} 20. bxa5 {[%emt 0:00:40]} Rad8 {[%emt 0:00:24]} 21. h3 {[%emt 0:03:49]} Nf5 {[%emt 0:02:33]} 22. Bh2 {[%emt 0:02:48]} Nd6 {[%emt 0:00:47]} 23. f3 {[%emt 0:08:11]} Bh7 {[%emt 0:03:55]} 24. Kf2 {[%emt 0:07:43]} f6 {[%emt 0:01:52]} 25. Rc3 {[%emt 0:09:38]} Re7 {[%emt 0:01:23]} 26. Rac1 {[%emt 0:01:16]} Kf8 {[%emt 0:01:35]} 27. g4 {[%emt 0:06:49]} Bg6 {[%emt 0:07:58]} 28. Rc5 {[%emt 0:07:12]} Rdd7 {[%emt 0:02:37]} 29. R1c3 {[%emt 0:06:02]} Rd8 {[%emt 0:03:51]} 30. Ra3 {[%emt 0:03:59]} Kf7 {[%emt 0:05:23]} 31. Rb3 {[%emt 0:01:13]} Kf8 {[%emt 0:00:41]} 32. Rb4 {[%emt 0:01:10]} Bf7 {[%emt 0:06:45]} 33. Bd3 {[%emt 0:06:57]} g5 {[%emt 0:04:26]} 34. Bg3 {[%emt 0:01:25]} Kg7 {[%emt 0:00:45]} 35. Rb2 {[%emt 0:03:38]} Bg6 {[%emt 0:01:02]} 36. Bf1 {[%emt 0:00:28]} h5 {[%emt 0:02:22]} 37. Bh2 {[%emt 0:04:35]} 1/2-1/2

[Event "17th Aeroflot Open-A 2019"]
[Site "Moscow"]
[Date "2019.02.23"]
[Round "5.19"]
[White "Debashis, Das"]
[Black "Idani, Pouya"]
[Result "1/2-1/2"]
[ECO "D31"]
[WhiteElo "2532"]
[BlackElo "2604"]
[Annotator "ChessBase"]
[PlyCount "60"]
[EventDate "2019.02.19"]
[EventCountry "RUS"]
[SourceTitle "playchess.com"]
[Source "ChessBase"]
[SourceQuality "1"]
[TimeControl "40/5400+30:1800+30"]

1. d4 {[%emt 0:00:00]} d5 {[%emt 0:04:26]} 2. c4 {[%emt 0:00:00]} e6 {[%emt 0:00:03]} 3. Nc3 {[%emt 0:00:00]} a6 {[%emt 0:00:04]} 4. cxd5 {[%emt 0:00:27]} exd5 {[%emt 0:00:05]} 5. Nf3 {[%emt 0:00:07]} Nf6 {[%emt 0:00:07]} 6. Bg5 {[%emt 0:00:18]} Be6 {[%emt 0:00:05]} 7. e3 {[%emt 0:00:33]} Nbd7 {[%emt 0:00:04]} 8. Bd3 {[%emt 0:01:09]} Bd6 {[%emt 0:00:06]} 9. Qc2 {[%emt 0:02:08]} c6 {[%emt 0:00:08]} 10. Bf4 {[%emt 0:00:23]} Qc7 {[%emt 0:01:02]} 11. Bxd6 {[%emt 0:00:18]} Qxd6 {[%emt 0:00:05]} 12. h3 {[%emt 0:00:08]} O-O {[%emt 0:00:10]} 13. O-O {[%emt 0:00:18]} g6 {[%emt 0:02:32]} 14. Na4 {[%emt 0:00:06]} Qe7 {[%emt 0:02:52]} 15. b4 {[%emt 0:02:32]} Ne4 {[%emt 0:00:25]} 16. Nc5 {[%emt 0:03:10]} a5 {[%emt 0:00:33]} 17. Bxe4 {[%emt 0:28:40]} dxe4 {[%emt 0:00:19]} 18. Qxe4 {[%emt 0:09:27]} axb4 {[%emt 0:00:29]} 19. Nxe6 {[%emt 0:09:37]} fxe6 {[%emt 0:07:07]} 20. Ne5 {[%emt 0:02:59]} Nxe5 {[%emt 0:03:55]} 21. Qxe5 {[%emt 0:00:09]} Rf5 {[%emt 0:02:09]} 22. Qe4 {[%emt 0:00:11]} Rfa5 {[%emt 0:03:07]} 23. Qc2 {[%emt 0:00:56]} Ra3 {[%emt 0:02:20]} 24. Rfb1 {[%emt 0:02:30]} Rc3 {[%emt 0:08:41]} 25. Qd1 {[%emt 0:01:09]} b5 {[%emt 0:05:31]} 26. Rb2 {[%emt 0:02:48]} Qd6 {[%emt 0:09:43]} 27. Rab1 {[%emt 0:00:54]} Ra4 {[%emt 0:02:04]} 28. Qd2 {[%emt 0:04:36]} Rc4 {[%emt 0:02:25]} 29. Rb3 {[%emt 0:04:15]} e5 {[%emt 0:04:15]} 30. Rd1 {[%emt 0:02:03]} exd4 {[%emt 0:06:33]} 1/2-1/2

[Event "17th Aeroflot Open-A 2019"]
[Site "Moscow"]
[Date "2019.02.23"]
[Round "5.20"]
[White "Sadhwani, Raunak"]
[Black "Gordievsky, Dmitry"]
[Result "1/2-1/2"]
[ECO "B33"]
[WhiteElo "2448"]
[BlackElo "2603"]
[Annotator "ChessBase"]
[PlyCount "39"]
[EventDate "2019.02.19"]
[EventCountry "RUS"]
[SourceTitle "playchess.com"]
[Source "ChessBase"]
[SourceQuality "1"]
[TimeControl "40/5400+30:1800+30"]

1. e4 {[%emt 0:00:00]} c5 {[%emt 0:00:00]} 2. Nf3 {[%emt 0:00:00]} Nc6 {[%emt 0:03:25]} 3. d4 {[%emt 0:00:00]} cxd4 {[%emt 0:00:04]} 4. Nxd4 {[%emt 0:00:00]} Nf6 {[%emt 0:00:05]} 5. Nc3 {[%emt 0:00:00]} e5 {[%emt 0:00:09]} 6. Ndb5 {[%emt 0:00:05]} d6 {[%emt 0:00:06]} 7. Bg5 {[%emt 0:00:09]} a6 {[%emt 0:00:07]} 8. Na3 {[%emt 0:00:06]} b5 {[%emt 0:00:04]} 9. Nd5 {[%emt 0:00:07]} Be7 {[%emt 0:00:06]} 10. Bxf6 {[%emt 0:00:05]} Bxf6 {[%emt 0:00:05]} 11. c3 {[%emt 0:00:10]} Bg5 {[%emt 0:04:19]} 12. Nc2 {[%emt 0:00:26]} Ne7 {[%emt 0:02:12]} 13. a4 {[%emt 0:05:22]} bxa4 {[%emt 0:01:55]} 14. Ncb4 {[%emt 0:00:51]} Nxd5 {[%emt 0:03:51]} 15. Qxd5 {[%emt 0:03:28]} Be6 {[%emt 0:00:41]} 16. Qc6+ {[%emt 0:01:33]} Bd7 {[%emt 0:00:18]} 17. Qxd6 {[%emt 0:03:07]} Be7 {[%emt 0:01:45]} 18. Qxe5 {[%emt 0:08:30]} O-O {[%emt 0:00:59]} 19. Qd4 {[%emt 0:07:38]} Bxb4 {[%emt 0:35:46]} 20. cxb4 {[%emt 0:05:05]} 1/2-1/2

[Event "17th Aeroflot Open-A 2019"]
[Site "Moscow"]
[Date "2019.02.23"]
[Round "5.21"]
[White "Sethuraman, S.P."]
[Black "Sargsyan, Shant"]
[Result "1/2-1/2"]
[ECO "C50"]
[WhiteElo "2651"]
[BlackElo "2488"]
[Annotator "ChessBase"]
[PlyCount "97"]
[EventDate "2019.02.19"]
[EventCountry "RUS"]
[SourceTitle "playchess.com"]
[Source "ChessBase"]
[SourceQuality "1"]
[TimeControl "40/5400+30:1800+30"]

1. e4 {[%emt 0:00:00]} e5 {[%emt 0:00:50]} 2. Nf3 {[%emt 0:00:00]} Nc6 {[%emt 0:00:10]} 3. Bc4 {[%emt 0:00:05]} Bc5 {[%emt 0:00:44]} 4. O-O {[%emt 0:00:29]} Nf6 {[%emt 0:01:01]} 5. d3 {[%emt 0:00:06]} h6 {[%emt 0:01:06]} 6. c3 {[%emt 0:00:09]} d6 {[%emt 0:00:20]} 7. Re1 {[%emt 0:00:42]} O-O {[%emt 0:01:28]} 8. Nbd2 {[%emt 0:00:13]} a5 {[%emt 0:02:13]} 9. Nf1 {[%emt 0:01:33]} Be6 {[%emt 0:03:27]} 10. Bb5 {[%emt 0:00:06]} Ba7 {[%emt 0:03:38]} 11. Ng3 {[%emt 0:08:01]} Ne7 {[%emt 0:01:49]} 12. d4 {[%emt 0:00:20]} c6 {[%emt 0:02:34]} 13. Bd3 {[%emt 0:01:25]} Ng6 {[%emt 0:01:16]} 14. h3 {[%emt 0:02:30]} a4 {[%emt 0:03:10]} 15. Be3 {[%emt 0:03:51]} Re8 {[%emt 0:13:54]} 16. Qc2 {[%emt 0:11:34]} Qc7 {[%emt 0:08:25]} 17. c4 {[%emt 0:02:13]} Qa5 {[%emt 0:07:48]} 18. Bf1 {[%emt 0:17:50]} b5 {[%emt 0:04:13]} 19. cxb5 {[%emt 0:09:51]} cxb5 {[%emt 0:02:00]} 20. Qc6 {[%emt 0:02:39]} Rab8 {[%emt 0:06:25]} 21. Bd2 {[%emt 0:24:09]} Qb6 {[%emt 0:07:31]} 22. Qxb6 {[%emt 0:00:27]} Rxb6 {[%emt 0:00:38]} 23. d5 {[%emt 0:02:30]} Bd7 {[%emt 0:00:22]} 24. Bb4 {[%emt 0:00:52]} Rc8 {[%emt 0:03:15]} 25. Rec1 {[%emt 0:00:15]} Ne8 {[%emt 0:01:44]} 26. Rxc8 {[%emt 0:00:34]} Bxc8 {[%emt 0:00:01]} 27. Rc1 {[%emt 0:00:26]} Bd7 {[%emt 0:00:53]} 28. Ne2 {[%emt 0:05:47]} Rb8 {[%emt 0:04:04]} 29. g3 {[%emt 0:00:16]} f5 {[%emt 0:04:58]} 30. exf5 {[%emt 0:00:47]} Bxf5 {[%emt 0:00:49]} 31. Nc3 {[%emt 0:00:03]} e4 {[%emt 0:02:04]} 32. g4 {[%emt 0:00:40]} exf3 {[%emt 0:02:38]} 33. gxf5 {[%emt 0:00:05]} Nf4 {[%emt 0:00:10]} 34. Re1 {[%emt 0:00:51]} Bd4 {[%emt 0:03:45]} 35. Nxb5 {[%emt 0:01:22]} Nxh3+ {[%emt 0:01:30]} 36. Bxh3 {[%emt 0:00:21]} Rxb5 {[%emt 0:00:13]} 37. Rxe8+ {[%emt 0:04:14]} Kf7 {[%emt 0:00:06]} 38. Re6 {[%emt 0:00:42]} Rxb4 {[%emt 0:00:33]} 39. Bg4 {[%emt 0:00:06]} Bxf2+ {[%emt 0:01:42]} 40. Kxf2 {[%emt 0:00:00]} Rxg4 {[%emt 0:00:00]} 41. Kxf3 {[%emt 0:00:35]} Rb4 {[%emt 0:01:11]} 42. Rxd6 {[%emt 0:00:21]} Rxb2 {[%emt 0:00:06]} 43. a3 {[%emt 0:00:18]} Rb3+ {[%emt 0:06:16]} 44. Kf4 {[%emt 0:01:22]} Rxa3 {[%emt 0:00:57]} 45. Ra6 {[%emt 0:00:33]} Ra1 {[%emt 0:02:36]} 46. Ra7+ {[%emt 0:01:52]} Kf6 {[%emt 0:00:38]} 47. Ra6+ {[%emt 0:00:13]} Kf7 {[%emt 0:02:29]} 48. Ra7+ {[%emt 0:00:09]} Kf6 {[%emt 0:00:29]} 49. Ra6+ {[%emt 0:00:07] Ke5+ Ke4+} 1/2-1/2